[Event "Titled Tuesday Blitz November 14 Early 2023"]
[White "Sharafiev, Azat"]
[Black "Yeletsky, Ivan"]
[WhiteFideId "4186214"]
[BlackFideId "24180327"]
[WhiteElo "2415"]
[BlackElo "2910"]
[Result "0-1"]
[Round "2"]
[TimeControl "180+1"]
[Date "2023.11.14"]
[WhiteClock "0:00:14"]
[BlackClock "0:01:27"]
[Board "132"]

1. e4 {[%clk 0:03:00]}  e6 {[%clk 0:03:00]} 2. d4 {[%clk 0:02:59]}  d5 {[%clk 0:03:01]} 3. Nc3 {[%clk 0:02:58]}  dxe4 {[%clk 0:03:01]} 4. Nxe4 {[%clk 0:02:58]}  Nd7 {[%clk 0:03:02]} 5. Nf3 {[%clk 0:02:58]}  Ngf6 {[%clk 0:03:02]} 6. Ng3 {[%clk 0:02:56]}  c5 {[%clk 0:02:59]} 7. Be2 {[%clk 0:02:52]}  cxd4 {[%clk 0:02:58]} 8. Nxd4 {[%clk 0:02:52]}  a6 {[%clk 0:02:54]} 9. O-O {[%clk 0:02:52]}  Qc7 {[%clk 0:02:53]} 10. c3 {[%clk 0:02:50]}  Bd6 {[%clk 0:02:51]} 11. Bg5 {[%clk 0:02:50]}  O-O {[%clk 0:02:51]} 12. Qc2 {[%clk 0:02:47]}  h6 {[%clk 0:02:50]} 13. Be3 {[%clk 0:02:47]}  b6 {[%clk 0:02:41]} 14. Bf3 {[%clk 0:02:35]}  Bb7 {[%clk 0:02:40]} 15. Qe2 {[%clk 0:02:35]}  Nd5 {[%clk 0:02:32]} 16. Rae1 {[%clk 0:02:23]}  Nxe3 {[%clk 0:02:30]} 17. Qxe3 {[%clk 0:02:23]}  Bxf3 {[%clk 0:02:25]} 18. Qxf3 {[%clk 0:02:22]}  b5 {[%clk 0:02:20]} 19. Kh1 {[%clk 0:02:17]}  Ne5 {[%clk 0:02:12]} 20. Qh5 {[%clk 0:02:13]}  Nc4 {[%clk 0:02:08]} 21. Ne4 {[%clk 0:02:10]}  Nxb2 {[%clk 0:01:48]} 22. Re3 {[%clk 0:01:50]}  Bf4 {[%clk 0:01:45]} 23. Rh3 {[%clk 0:01:44]}  Qe5 {[%clk 0:01:43]} 24. f3 {[%clk 0:01:41]}  Qxh5 {[%clk 0:01:42]} 25. Rxh5 {[%clk 0:01:41]}  Rac8 {[%clk 0:01:37]} 26. Ne2 {[%clk 0:01:27]}  Be3 {[%clk 0:01:33]} 27. g3 {[%clk 0:01:17]}  Rfd8 {[%clk 0:01:32]} 28. Rb1 {[%clk 0:01:00]}  Nc4 {[%clk 0:01:30]} 29. a4 {[%clk 0:00:47]}  f5 {[%clk 0:01:29]} 30. axb5 {[%clk 0:00:40]}  axb5 {[%clk 0:01:29]} 31. Rxb5 {[%clk 0:00:21]}  fxe4 {[%clk 0:01:29]} 32. fxe4 {[%clk 0:00:22]}  Rd1+ {[%clk 0:01:27]} 33. Kg2 {[%clk 0:00:22]}  Rd2 {[%clk 0:01:28]} 34. Kf3 {[%clk 0:00:22]}  Rf8+ {[%clk 0:01:27]} 35. Kg4 {[%clk 0:00:20]}  Rxe2 {[%clk 0:01:27]} 36. Rb7 {[%clk 0:00:19]}  Bg5 {[%clk 0:01:25]} 37. Kh3 {[%clk 0:00:18]}  Ne3 {[%clk 0:01:25]} 38. c4 {[%clk 0:00:14]}  Nf1 {[%clk 0:01:26]} 39. c5 {[%clk 0:00:13]}  Rxh2+ {[%clk 0:01:26]} 40. Kg4 {[%clk 0:00:14]}  Ne3# {[%clk 0:01:27]} 0-1


[Site "https://www.chess.com"]

[Event "Titled Tuesday Blitz November 14 Early 2023"]
[White "Herman, Daniel"]
[Black "mind1mover"]
[WhiteFideId "30935008"]
[WhiteElo "2414"]
[BlackElo "2837"]
[Result "0-1"]
[Round "2"]
[TimeControl "180+1"]
[Date "2023.11.14"]
[WhiteClock "0:00:07"]
[BlackClock "0:00:30"]
[Board "133"]

1. d4 {[%clk 0:03:00]}  Nc6 {[%clk 0:02:59]} 2. Nf3 {[%clk 0:03:00]}  Nf6 {[%clk 0:03:00]} 3. c4 {[%clk 0:02:59]}  e6 {[%clk 0:02:58]} 4. Nc3 {[%clk 0:02:59]}  Bb4 {[%clk 0:02:59]} 5. Qc2 {[%clk 0:02:56]}  O-O {[%clk 0:02:58]} 6. a3 {[%clk 0:02:53]}  Bxc3+ {[%clk 0:02:58]} 7. Qxc3 {[%clk 0:02:54]}  a5 {[%clk 0:02:58]} 8. b3 {[%clk 0:02:51]}  d6 {[%clk 0:02:58]} 9. g3 {[%clk 0:02:45]}  Qe7 {[%clk 0:02:56]} 10. Bb2 {[%clk 0:02:39]}  Re8 {[%clk 0:02:56]} 11. Bg2 {[%clk 0:02:38]}  e5 {[%clk 0:02:54]} 12. dxe5 {[%clk 0:02:37]}  dxe5 {[%clk 0:02:55]} 13. O-O {[%clk 0:02:34]}  Bg4 {[%clk 0:02:49]} 14. h3 {[%clk 0:02:23]}  Bh5 {[%clk 0:02:46]} 15. Qe3 {[%clk 0:02:18]}  Rad8 {[%clk 0:02:34]} 16. Rad1 {[%clk 0:02:15]}  Nd7 {[%clk 0:02:00]} 17. Nh4 {[%clk 0:01:40]}  Bg6 {[%clk 0:01:55]} 18. Nxg6 {[%clk 0:01:24]}  hxg6 {[%clk 0:01:55]} 19. Rd5 {[%clk 0:01:22]}  Nf6 {[%clk 0:01:45]} 20. Rb5 {[%clk 0:01:14]}  Nd4 {[%clk 0:01:35]} 21. Rxb7 {[%clk 0:00:58]}  Nf5 {[%clk 0:01:36]} 22. Qc3 {[%clk 0:00:51]}  Nd6 {[%clk 0:01:36]} 23. Ra7 {[%clk 0:00:50]}  Nde4 {[%clk 0:01:36]} 24. Qxa5 {[%clk 0:00:47]}  Nd2 {[%clk 0:01:36]} 25. Rxc7 {[%clk 0:00:43]}  Qd6 {[%clk 0:01:22]} 26. c5 {[%clk 0:00:41]}  Qe6 {[%clk 0:01:19]} 27. b4 {[%clk 0:00:35]}  Nxf1 {[%clk 0:01:18]} 28. Bxf1 {[%clk 0:00:36]}  Rd1 {[%clk 0:01:17]} 29. Kg2 {[%clk 0:00:18]}  Rxf1 {[%clk 0:01:17]} 30. Kxf1 {[%clk 0:00:17]}  Qxh3+ {[%clk 0:01:17]} 31. Ke1 {[%clk 0:00:14]}  Qh1+ {[%clk 0:01:17]} 32. Kd2 {[%clk 0:00:14]}  Rd8+ {[%clk 0:01:17]} 33. Kc3 {[%clk 0:00:14]}  Qd1 {[%clk 0:01:10]} 34. Kc4 {[%clk 0:00:14]}  Qd5+ {[%clk 0:01:06]} 35. Kb5 {[%clk 0:00:13]}  Ne4 {[%clk 0:01:07]} 36. Qb6 {[%clk 0:00:12]}  Qd2 {[%clk 0:01:01]} 37. Bxe5 {[%clk 0:00:11]}  Qxe2+ {[%clk 0:01:01]} 38. Ka5 {[%clk 0:00:10]}  Nd2 {[%clk 0:00:58]} 39. Qb7 {[%clk 0:00:07]}  Nc4+ {[%clk 0:00:53]} 40. Ka4 {[%clk 0:00:07]}  Nxe5 {[%clk 0:00:44]} 41. Re7 {[%clk 0:00:07]}  Qc2+ {[%clk 0:00:41]} 42. Ka5 {[%clk 0:00:07]}  Nc4+ {[%clk 0:00:41]} 43. Kb5 {[%clk 0:00:06]}  Nxa3+ {[%clk 0:00:41]} 44. Kc6 {[%clk 0:00:06]}  Qxf2 {[%clk 0:00:37]} 45. Qc7 {[%clk 0:00:05]}  Qf3+ {[%clk 0:00:36]} 46. Kb6 {[%clk 0:00:06]}  Nc4+ {[%clk 0:00:36]} 47. Kb5 {[%clk 0:00:06]}  Na3+ {[%clk 0:00:36]} 48. Kb6 {[%clk 0:00:06]}  Qa8 {[%clk 0:00:34]} 49. Qb7 {[%clk 0:00:06]}  Qa4 {[%clk 0:00:32]} 50. c6 {[%clk 0:00:07]}  Qxb4+ {[%clk 0:00:29]} 51. Kc7 {[%clk 0:00:07]}  Qxe7+ {[%clk 0:00:28]} 52. Kb6 {[%clk 0:00:06]}  Nc4+ {[%clk 0:00:28]} 53. Ka7 {[%clk 0:00:06]}  Qa3+ {[%clk 0:00:27]} 54. Qa6 {[%clk 0:00:05]}  Ra8+ {[%clk 0:00:27]} 55. Kxa8 {[%clk 0:00:05]}  Qxa6+ {[%clk 0:00:28]} 56. Kb8 {[%clk 0:00:06]}  Qb6+ {[%clk 0:00:28]} 57. Kc8 {[%clk 0:00:05]}  Qxc6+ {[%clk 0:00:29]} 58. Kd8 {[%clk 0:00:06]}  Nb6 {[%clk 0:00:29]} 59. Ke7 {[%clk 0:00:07]}  Qd7# {[%clk 0:00:30]} 0-1


[Site "https://www.chess.com"]

[Event "Titled Tuesday Blitz November 14 Early 2023"]
[White "Xu, Yi"]
[Black "Kulkarni, Rakesh"]
[WhiteFideId "8605564"]
[BlackFideId "5037077"]
[WhiteElo "2806"]
[BlackElo "2407"]
[Result "1-0"]
[Round "2"]
[TimeControl "180+1"]
[Date "2023.11.14"]
[WhiteClock "0:01:55"]
[BlackClock "0:01:24"]
[Board "136"]

1. e4 {[%clk 0:02:59]}  c5 {[%clk 0:02:59]} 2. Nf3 {[%clk 0:02:59]}  e6 {[%clk 0:02:58]} 3. d4 {[%clk 0:02:59]}  cxd4 {[%clk 0:02:48]} 4. Nxd4 {[%clk 0:03:00]}  a6 {[%clk 0:02:47]} 5. c4 {[%clk 0:02:55]}  Nf6 {[%clk 0:02:42]} 6. Nc3 {[%clk 0:02:55]}  Bb4 {[%clk 0:02:42]} 7. Qd3 {[%clk 0:02:53]}  Nc6 {[%clk 0:02:41]} 8. Nxc6 {[%clk 0:02:53]}  dxc6 {[%clk 0:02:42]} 9. Qxd8+ {[%clk 0:02:53]}  Kxd8 {[%clk 0:02:43]} 10. e5 {[%clk 0:02:48]}  Ne4 {[%clk 0:02:39]} 11. a3 {[%clk 0:02:46]}  Bxc3+ {[%clk 0:02:37]} 12. bxc3 {[%clk 0:02:46]}  Nxc3 {[%clk 0:02:28]} 13. a4 {[%clk 0:02:40]}  Ne4 {[%clk 0:02:19]} 14. Be3 {[%clk 0:02:34]}  h6 {[%clk 0:02:11]} 15. h4 {[%clk 0:02:20]}  f6 {[%clk 0:02:01]} 16. Bd3 {[%clk 0:02:14]}  f5 {[%clk 0:01:58]} 17. Rh3 {[%clk 0:02:08]}  Ke7 {[%clk 0:01:31]} 18. f3 {[%clk 0:01:59]}  Rd8 {[%clk 0:01:24]} 19. fxe4 {[%clk 0:01:55]} 1-0


[Site "https://www.chess.com"]

[Event "Titled Tuesday Blitz November 14 Early 2023"]
[White "Lobanov, Sergei"]
[Black "UK_23"]
[WhiteFideId "24183750"]
[WhiteElo "2804"]
[BlackElo "2407"]
[Result "1-0"]
[Round "2"]
[TimeControl "180+1"]
[Date "2023.11.14"]
[WhiteClock "0:00:32"]
[BlackClock "0:00:35"]
[Board "137"]

1. d4 {[%clk 0:03:00]}  d5 {[%clk 0:02:57]} 2. c4 {[%clk 0:03:01]}  e6 {[%clk 0:02:57]} 3. Nf3 {[%clk 0:03:01]}  Nf6 {[%clk 0:02:56]} 4. Nc3 {[%clk 0:03:01]}  Be7 {[%clk 0:02:53]} 5. Bf4 {[%clk 0:02:58]}  O-O {[%clk 0:02:53]} 6. e3 {[%clk 0:02:58]}  b6 {[%clk 0:02:54]} 7. cxd5 {[%clk 0:02:58]}  Nxd5 {[%clk 0:02:55]} 8. Nxd5 {[%clk 0:02:54]}  Qxd5 {[%clk 0:02:54]} 9. Bd3 {[%clk 0:02:51]}  Bb4+ {[%clk 0:02:39]} 10. Ke2 {[%clk 0:02:47]}  Ba6 {[%clk 0:02:40]} 11. Bxc7 {[%clk 0:02:18]}  Rc8 {[%clk 0:02:27]} 12. Bxb8 {[%clk 0:02:11]}  Bxd3+ {[%clk 0:02:26]} 13. Qxd3 {[%clk 0:02:12]}  Raxb8 {[%clk 0:02:26]} 14. a3 {[%clk 0:02:12]}  Bf8 {[%clk 0:02:24]} 15. Rhc1 {[%clk 0:02:12]}  h6 {[%clk 0:02:20]} 16. Rc2 {[%clk 0:02:01]}  Rxc2+ {[%clk 0:02:18]} 17. Qxc2 {[%clk 0:02:02]}  Qb5+ {[%clk 0:02:18]} 18. Ke1 {[%clk 0:02:03]}  Qa6 {[%clk 0:02:12]} 19. Rc1 {[%clk 0:02:03]}  Bd6 {[%clk 0:02:13]} 20. Qc6 {[%clk 0:01:47]}  Bf8 {[%clk 0:01:50]} 21. Ne5 {[%clk 0:01:44]}  Qa5+ {[%clk 0:01:50]} 22. Ke2 {[%clk 0:01:38]}  Qa6+ {[%clk 0:01:45]} 23. Ke1 {[%clk 0:01:30]}  Qa5+ {[%clk 0:01:45]} 24. Kf1 {[%clk 0:01:30]}  Qd2 {[%clk 0:01:42]} 25. Qc2 {[%clk 0:01:24]}  Qa5 {[%clk 0:01:40]} 26. Qc7 {[%clk 0:01:17]}  Qb5+ {[%clk 0:01:23]} 27. Rc4 {[%clk 0:01:06]}  Qe8 {[%clk 0:01:17]} 28. Nxf7 {[%clk 0:00:58]}  b5 {[%clk 0:01:14]} 29. Rc1 {[%clk 0:00:56]}  b4 {[%clk 0:01:14]} 30. a4 {[%clk 0:00:44]}  b3 {[%clk 0:01:05]} 31. Ne5 {[%clk 0:00:44]}  Ra8 {[%clk 0:01:03]} 32. Qc6 {[%clk 0:00:43]}  Qxc6 {[%clk 0:00:52]} 33. Rxc6 {[%clk 0:00:43]}  Rb8 {[%clk 0:00:52]} 34. Ke2 {[%clk 0:00:41]}  a5 {[%clk 0:00:50]} 35. Kd3 {[%clk 0:00:39]}  Rb4 {[%clk 0:00:49]} 36. Rc4 {[%clk 0:00:37]}  Rb8 {[%clk 0:00:42]} 37. Nd7 {[%clk 0:00:33]}  Ra8 {[%clk 0:00:42]} 38. Nxf8 {[%clk 0:00:33]}  Kxf8 {[%clk 0:00:42]} 39. Kc3 {[%clk 0:00:32]}  Rb8 {[%clk 0:00:35]} 40. Rc5 {[%clk 0:00:32]} 1-0


[Site "https://www.chess.com"]

[Event "Titled Tuesday Blitz November 14 Early 2023"]
[White "Costachi, Mihnea"]
[Black "Nastase, Robert-Paul"]
[WhiteFideId "1217518"]
[BlackFideId "1221175"]
[WhiteElo "2763"]
[BlackElo "2406"]
[Result "1-0"]
[Round "2"]
[TimeControl "180+1"]
[Date "2023.11.14"]
[WhiteClock "0:02:04"]
[BlackClock "0:00:11"]
[Board "138"]

1. f4 {[%clk 0:03:00]}  f5 {[%clk 0:02:58]} 2. e4 {[%clk 0:02:59]}  fxe4 {[%clk 0:02:55]} 3. d3 {[%clk 0:02:59]}  Nf6 {[%clk 0:02:54]} 4. Nc3 {[%clk 0:02:56]}  d5 {[%clk 0:02:42]} 5. dxe4 {[%clk 0:02:53]}  dxe4 {[%clk 0:02:37]} 6. Qxd8+ {[%clk 0:02:51]}  Kxd8 {[%clk 0:02:38]} 7. Be3 {[%clk 0:02:47]}  c6 {[%clk 0:02:37]} 8. O-O-O+ {[%clk 0:02:43]}  Kc7 {[%clk 0:02:38]} 9. h3 {[%clk 0:02:42]}  h5 {[%clk 0:02:36]} 10. g3 {[%clk 0:02:42]}  Bf5 {[%clk 0:02:33]} 11. Bg2 {[%clk 0:02:41]}  e6 {[%clk 0:02:31]} 12. Nge2 {[%clk 0:02:38]}  Nbd7 {[%clk 0:01:47]} 13. Nd4 {[%clk 0:02:27]}  g6 {[%clk 0:01:45]} 14. Nb3 {[%clk 0:02:22]}  Bg7 {[%clk 0:01:40]} 15. Bd4 {[%clk 0:02:22]}  Rhg8 {[%clk 0:01:37]} 16. Rhe1 {[%clk 0:02:23]}  Rae8 {[%clk 0:01:28]} 17. Nc5 {[%clk 0:02:17]}  Nxc5 {[%clk 0:01:20]} 18. Bxc5 {[%clk 0:02:18]}  b6 {[%clk 0:01:00]} 19. Bd6+ {[%clk 0:02:16]}  Kc8 {[%clk 0:00:53]} 20. Nxe4 {[%clk 0:02:16]}  Nxe4 {[%clk 0:00:48]} 21. Bxe4 {[%clk 0:02:16]}  Bxe4 {[%clk 0:00:37]} 22. Rxe4 {[%clk 0:02:17]}  Bf6 {[%clk 0:00:26]} 23. Be5 {[%clk 0:02:12]}  Bxe5 {[%clk 0:00:25]} 24. Rxe5 {[%clk 0:02:13]}  Rg7 {[%clk 0:00:25]} 25. Rde1 {[%clk 0:02:12]}  Kd7 {[%clk 0:00:22]} 26. Kd2 {[%clk 0:02:12]}  Kd6 {[%clk 0:00:20]} 27. Kd3 {[%clk 0:02:12]}  Rf7 {[%clk 0:00:19]} 28. Ke4 {[%clk 0:02:06]}  Rf5 {[%clk 0:00:18]} 29. Rd1+ {[%clk 0:02:07]}  Ke7 {[%clk 0:00:18]} 30. g4 {[%clk 0:02:05]}  hxg4 {[%clk 0:00:18]} 31. hxg4 {[%clk 0:02:05]}  Rxe5+ {[%clk 0:00:17]} 32. Kxe5 {[%clk 0:02:03]}  Rh8 {[%clk 0:00:15]} 33. Rd6 {[%clk 0:02:03]}  Rh1 {[%clk 0:00:15]} 34. Rxe6+ {[%clk 0:02:03]}  Kf7 {[%clk 0:00:15]} 35. Rf6+ {[%clk 0:02:02]}  Kg7 {[%clk 0:00:15]} 36. Rxc6 {[%clk 0:02:03]}  Re1+ {[%clk 0:00:15]} 37. Kd4 {[%clk 0:02:03]}  Rf1 {[%clk 0:00:14]} 38. Ke3 {[%clk 0:02:03]}  Rg1 {[%clk 0:00:13]} 39. g5 {[%clk 0:02:02]}  Rg3+ {[%clk 0:00:13]} 40. Ke4 {[%clk 0:02:02]}  Rg2 {[%clk 0:00:13]} 41. Rc7+ {[%clk 0:02:03]}  Kf8 {[%clk 0:00:11]} 42. Ke5 {[%clk 0:02:04]} 1-0


[Site "https://www.chess.com"]

[Event "Titled Tuesday Blitz November 14 Early 2023"]
[White "Goltsev, Dmitry"]
[Black "Ron_Weasley_Chess"]
[WhiteFideId "24176710"]
[WhiteElo "2751"]
[BlackElo "2403"]
[Result "1-0"]
[Round "2"]
[TimeControl "180+1"]
[Date "2023.11.14"]
[WhiteClock "0:00:26"]
[BlackClock "0:00:00"]
[Board "140"]

1. e4 {[%clk 0:03:00]}  c6 {[%clk 0:02:59]} 2. d4 {[%clk 0:02:59]}  d5 {[%clk 0:03:00]} 3. Nc3 {[%clk 0:03:00]}  dxe4 {[%clk 0:03:00]} 4. Nxe4 {[%clk 0:03:01]}  Nf6 {[%clk 0:03:00]} 5. Qe2 {[%clk 0:03:02]}  Nxe4 {[%clk 0:02:43]} 6. Qxe4 {[%clk 0:03:01]}  Nd7 {[%clk 0:02:44]} 7. Nf3 {[%clk 0:03:01]}  Nf6 {[%clk 0:02:44]} 8. Qh4 {[%clk 0:03:01]}  g6 {[%clk 0:02:42]} 9. Bc4 {[%clk 0:02:45]}  Bg7 {[%clk 0:02:40]} 10. Ne5 {[%clk 0:02:44]}  O-O {[%clk 0:02:34]} 11. c3 {[%clk 0:02:44]}  Nd5 {[%clk 0:02:30]} 12. Bh6 {[%clk 0:02:43]}  e6 {[%clk 0:02:14]} 13. Qh3 {[%clk 0:02:34]}  f6 {[%clk 0:02:10]} 14. Nd3 {[%clk 0:02:31]}  e5 {[%clk 0:02:06]} 15. Qh4 {[%clk 0:02:31]}  e4 {[%clk 0:02:02]} 16. Bxg7 {[%clk 0:02:29]}  Kxg7 {[%clk 0:02:00]} 17. Nf4 {[%clk 0:02:26]}  g5 {[%clk 0:01:49]} 18. Nh5+ {[%clk 0:02:23]}  Kg6 {[%clk 0:01:48]} 19. Qxe4+ {[%clk 0:02:16]}  Bf5 {[%clk 0:01:16]} 20. Qf3 {[%clk 0:02:13]}  Re8+ {[%clk 0:01:14]} 21. Kd2 {[%clk 0:02:02]}  Be4 {[%clk 0:01:05]} 22. Bd3 {[%clk 0:01:51]}  f5 {[%clk 0:00:43]} 23. Bxe4 {[%clk 0:01:37]}  fxe4 {[%clk 0:00:44]} 24. Qg4 {[%clk 0:01:29]}  Rf8 {[%clk 0:00:26]} 25. Rhf1 {[%clk 0:01:16]}  Qe7 {[%clk 0:00:19]} 26. Rae1 {[%clk 0:01:07]}  e3+ {[%clk 0:00:13]} 27. Kc1 {[%clk 0:01:03]}  Rae8 {[%clk 0:00:09]} 28. f4 {[%clk 0:00:52]}  e2 {[%clk 0:00:10]} 29. f5+ {[%clk 0:00:37]}  Kh6 {[%clk 0:00:10]} 30. Rf3 {[%clk 0:00:37]}  Qe4 {[%clk 0:00:09]} 31. Qxe4 {[%clk 0:00:35]}  Rxe4 {[%clk 0:00:10]} 32. Ng3 {[%clk 0:00:36]}  Rf4 {[%clk 0:00:08]} 33. Rxe2 {[%clk 0:00:35]}  Rxf3 {[%clk 0:00:06]} 34. gxf3 {[%clk 0:00:36]}  Nf4 {[%clk 0:00:07]} 35. Re7 {[%clk 0:00:35]}  Nd3+ {[%clk 0:00:03]} 36. Kd2 {[%clk 0:00:36]}  Nxb2 {[%clk 0:00:03]} 37. Rxb7 {[%clk 0:00:33]}  Nc4+ {[%clk 0:00:04]} 38. Kd3 {[%clk 0:00:34]}  Nd6 {[%clk 0:00:05]} 39. Rc7 {[%clk 0:00:33]}  Nxf5 {[%clk 0:00:05]} 40. Rxc6+ {[%clk 0:00:34]}  Kg7 {[%clk 0:00:05]} 41. Ne4 {[%clk 0:00:32]}  Nh4 {[%clk 0:00:05]} 42. Nxg5 {[%clk 0:00:31]}  Rf5 {[%clk 0:00:04]} 43. Rc7+ {[%clk 0:00:30]}  Kg6 {[%clk 0:00:04]} 44. Ne4 {[%clk 0:00:30]}  Rxf3+ {[%clk 0:00:04]} 45. Kc4 {[%clk 0:00:30]}  Nf5 {[%clk 0:00:05]} 46. Rxa7 {[%clk 0:00:29]}  Ne3+ {[%clk 0:00:04]} 47. Kc5 {[%clk 0:00:29]}  Rf5+ {[%clk 0:00:04]} 48. Kc6 {[%clk 0:00:27]}  Nd5 {[%clk 0:00:05]} 49. Nc5 {[%clk 0:00:25]}  Nxc3 {[%clk 0:00:05]} 50. Re7 {[%clk 0:00:22]}  Nd5 {[%clk 0:00:03]} 51. Re6+ {[%clk 0:00:21]}  Kg7 {[%clk 0:00:04]} 52. Re5 {[%clk 0:00:21]}  Rxe5 {[%clk 0:00:04]} 53. dxe5 {[%clk 0:00:22]}  Nb4+ {[%clk 0:00:04]} 54. Kd7 {[%clk 0:00:21]}  Nxa2 {[%clk 0:00:05]} 55. e6 {[%clk 0:00:21]}  Nc3 {[%clk 0:00:04]} 56. e7 {[%clk 0:00:21]}  Nd5 {[%clk 0:00:05]} 57. Ne4 {[%clk 0:00:21]}  Nxe7 {[%clk 0:00:05]} 58. Kxe7 {[%clk 0:00:22]}  Kg6 {[%clk 0:00:05]} 59. Ke6 {[%clk 0:00:21]}  Kh5 {[%clk 0:00:05]} 60. Kf5 {[%clk 0:00:21]}  Kh4 {[%clk 0:00:06]} 61. Nf2 {[%clk 0:00:22]}  h5 {[%clk 0:00:04]} 62. Ke4 {[%clk 0:00:22]}  Kg5 {[%clk 0:00:04]} 63. Kf3 {[%clk 0:00:23]}  Kh4 {[%clk 0:00:03]} 64. h3 {[%clk 0:00:23]}  Kg5 {[%clk 0:00:03]} 65. Kg3 {[%clk 0:00:24]}  h4+ {[%clk 0:00:01]} 66. Kf3 {[%clk 0:00:24]}  Kf5 {[%clk 0:00:02]} 67. Ne4 {[%clk 0:00:24]}  Ke5 {[%clk 0:00:02]} 68. Nd2 {[%clk 0:00:25]}  Kf5 {[%clk 0:00:02]} 69. Nf1 {[%clk 0:00:25]}  Ke5 {[%clk 0:00:00]} 70. Kg4 {[%clk 0:00:26]} 1-0


[Site "https://www.chess.com"]

[Event "Titled Tuesday Blitz November 14 Early 2023"]
[White "Krivonosov, Oleg"]
[Black "Melaugh, Shane"]
[WhiteFideId "11600349"]
[BlackFideId "2509580"]
[WhiteElo "2719"]
[BlackElo "2391"]
[Result "1-0"]
[Round "2"]
[TimeControl "180+1"]
[Date "2023.11.14"]
[WhiteClock "0:01:38"]
[BlackClock "0:00:30"]
[Board "142"]

1. Nf3 {[%clk 0:03:00]}  f5 {[%clk 0:02:56]} 2. g3 {[%clk 0:03:00]}  Nf6 {[%clk 0:02:55]} 3. Bg2 {[%clk 0:03:00]}  d6 {[%clk 0:02:56]} 4. d4 {[%clk 0:02:59]}  e6 {[%clk 0:02:56]} 5. O-O {[%clk 0:02:59]}  Be7 {[%clk 0:02:57]} 6. c4 {[%clk 0:02:59]}  O-O {[%clk 0:02:57]} 7. Nc3 {[%clk 0:02:59]}  Ne4 {[%clk 0:02:58]} 8. Qc2 {[%clk 0:02:58]}  Nxc3 {[%clk 0:02:58]} 9. Qxc3 {[%clk 0:02:59]}  a5 {[%clk 0:02:58]} 10. b3 {[%clk 0:02:59]}  Bf6 {[%clk 0:02:58]} 11. Bb2 {[%clk 0:02:59]}  Nc6 {[%clk 0:02:58]} 12. Qd2 {[%clk 0:02:59]}  e5 {[%clk 0:02:56]} 13. dxe5 {[%clk 0:02:59]}  dxe5 {[%clk 0:02:57]} 14. Qd5+ {[%clk 0:02:59]}  Kh8 {[%clk 0:02:56]} 15. Qxd8 {[%clk 0:02:58]}  Rxd8 {[%clk 0:02:55]} 16. Rfd1 {[%clk 0:02:58]}  Be6 {[%clk 0:02:52]} 17. Ne1 {[%clk 0:02:56]}  Kg8 {[%clk 0:02:43]} 18. Bxc6 {[%clk 0:02:53]}  bxc6 {[%clk 0:02:42]} 19. Nd3 {[%clk 0:02:52]}  e4 {[%clk 0:02:11]} 20. Bxf6 {[%clk 0:02:50]}  gxf6 {[%clk 0:02:12]} 21. Nf4 {[%clk 0:02:44]}  Kf7 {[%clk 0:02:11]} 22. f3 {[%clk 0:02:43]}  Ke7 {[%clk 0:02:10]} 23. Kf2 {[%clk 0:02:40]}  Rxd1 {[%clk 0:02:08]} 24. Rxd1 {[%clk 0:02:39]}  a4 {[%clk 0:02:09]} 25. Rd4 {[%clk 0:02:15]}  axb3 {[%clk 0:01:52]} 26. axb3 {[%clk 0:02:16]}  Rb8 {[%clk 0:01:41]} 27. fxe4 {[%clk 0:02:08]}  Rxb3 {[%clk 0:01:41]} 28. Nxe6 {[%clk 0:02:04]}  Kxe6 {[%clk 0:01:41]} 29. exf5+ {[%clk 0:02:05]}  Kxf5 {[%clk 0:01:40]} 30. Rd7 {[%clk 0:02:05]}  Kg6 {[%clk 0:01:37]} 31. Rxc7 {[%clk 0:02:04]}  Rb6 {[%clk 0:01:36]} 32. c5 {[%clk 0:02:04]}  Ra6 {[%clk 0:01:36]} 33. Kf3 {[%clk 0:02:04]}  h5 {[%clk 0:01:36]} 34. h4 {[%clk 0:02:03]}  Kf5 {[%clk 0:01:35]} 35. e3 {[%clk 0:01:48]}  Kg6 {[%clk 0:01:24]} 36. Kf4 {[%clk 0:01:47]}  f5 {[%clk 0:01:08]} 37. Rd7 {[%clk 0:01:45]}  Ra4+ {[%clk 0:01:05]} 38. Kf3 {[%clk 0:01:46]}  Kf6 {[%clk 0:00:47]} 39. Rd6+ {[%clk 0:01:45]}  Ke5 {[%clk 0:00:48]} 40. Rxc6 {[%clk 0:01:46]}  Rc4 {[%clk 0:00:48]} 41. Rc8 {[%clk 0:01:45]}  Ke6 {[%clk 0:00:44]} 42. c6 {[%clk 0:01:45]}  Kd6 {[%clk 0:00:42]} 43. Rf8 {[%clk 0:01:41]}  Ke6 {[%clk 0:00:38]} 44. Rh8 {[%clk 0:01:38]}  Ke5 {[%clk 0:00:36]} 45. Rxh5 {[%clk 0:01:37]}  Rxc6 {[%clk 0:00:30]} 46. g4 {[%clk 0:01:38]} 1-0


[Site "https://www.chess.com"]